Workbook

Sheet K
A2: TOIMIVAN TÄYSIHOITO/VALMENNUSTALLIN TILINPÄÄTÖSTEN ENNAKOINTI VIIDELLE VUODELLE
A4: Tällä laskentamallilla voit helposti laatia jo toimivalle täysihoito/valmennustallillesi alustavan taloudellisen laskelman seuraavan viiden vuoden toiminnasta. Valmennettavien hevosten lisäksi sinulla on mahdollisuus sisällyttää laskelmiin vain täysihoitoon otettuja hevosia. Syötä laskentaa varten malliin ensin tiedot tallisi viime tilinpäätöksen liikevaihdosta, taseen omaisuudesta ja poistoista, yrityksesi veroprosentista, velkojen koroista ja lyhennyksistä, sinun voitto-osuudestasi, rahoitusomaisuuden riittävästä määrästä sekä arvioi liikevaihdon ja kiinteiden kulujen kasvuprosentit ajanjaksolle. Syötä tämän jälkeen yrityksesi seuraavalle toimintavuodelle ennakoimasi tulot ja kulut, investoinnit ja rahoitus. Tässä laskentamallissa ei oteta huomioon arvonlisäveroa.
A6: Taulukossa on valmiina esimerkkinä kuvitteellisen täysihoito/valmennustallin luvut. Tässä omissa tiloissa toimivassa tallissa on pelkästään täysihoidossa 10 hevosta ja täysihoito/valmennuksessa 10 hevosta. Talli rahoittaa toimintansa lyhytaikaisella ja pitkäaikaisella velalla ja omalla pääomalla. Muuta taulukon vihreissä ruuduissa olevat tallin esimerkkiluvut oman tallisi arvioiduiksi luvuiksi. Pohdi antamiasi lukuja mahdollisimman huolellisesti.
A8: Miten suuri täyshoito/valmennustallisi liikevaihto oli viime tilinpäätöksessä (tuloslaskelmassa)? | F8: 200000 | G8: euroa | H8: =+IF(F8>=0,"","Luvun pitää olla positiivinen!") -> 
A10: Syötä viime tilinpäätöksen taseen tiedot niin, että omaisuuspuoli (vastaavaa) ja pääomapuoli (vastattavaa) ovat yhtä suuret (samat kuin taseessa).
A12: Omaisuuspuoli eli vastaavaa: lyhyt- ja pitkäaikainen omaisuus
F13: Taseen arvo
A14: Miten paljon viime tilinpäätöksen taseessa oli yhteensä rahoitusomaisuutta (kassa ja pankkitili) ja muuta lyhytaikaista omaisuutta? | F14: 10000 | G14: euroa | H14: =+IF(F14>=0,"","Luvun pitää olla positiivinen tai nolla!") -> 
A15: Laita tähän kaikki lyhytaikainen omaisuus taseesta (rahoitus-, vaihto ja muu lyhytaikainen omaisuus).
A17: Miten paljon viime tilinpäätöksen taseessa oli pitkäaikaista omaisuutta alla olevan jaon mukaisesti? Miten suuret poistot tästä pitkäaikaisesta omaisuudesta tehtiin tuloslaskelmassa? Laita jäljelle jäävät erät muuhun käyttöomaisuuteen.
A19: Huom! Ota omaisuuden todelliset luvut suoraan viimeisestä taseesta ja poistot viimeisestä tuloslaskelmasta! | F19: Taseen arvo | G19: Tehty poisto
A20: Taseen pitkäaikaiseen omaisuuteen kirjatut maa- ja vesialueet (esim. tontti)? | F20: 20000 | G20: 0 | H20: =+IF(F20>=0,"","Luvun pitää olla positiivinen tai nolla!") -> 
A21: Taseen pitkäaikaiseen omaisuuteen kirjatut rakennukset ja rakennelmat (esim. maneesi, talli, harjoitusravirata, tarhat))? | F21: 100000 | G21: 5000
A22: Taseen pitkäaikaiseen omaisuuteen kirjatut koneet ja kalusto (esim. traktori, lana, pienkuormaaja)? | F22: 35000 | G22: 5000
A23: Taseen pitkäaikaiseen omaisuuteen kirjattu aineeton omaisuus (esim. tietokoneohjelmat)? | F23: 1000 | G23: 250
A24: Taseen pitkäaikaiseen omaisuuteen kirjattu muu käyttöomaisuus (esim. työkalut, muut tarvikkeet)? | F24: 1000 | G24: 250
A26: Pääomapuoli eli vastattavaa: lyhyt- ja pitkäaikaiset velat (vieras pääoma) ja oma pääoma
A28: Jaa kaikki taseen pääomapuolella eli vastattavissa olevat erät lyhyt- ja pitkäaikaisiin velkoihin ja omaan pääomaan.
A29: (summan pitää vastata taseen vastattavien summaa) | F29: Taseen arvo
A30: Miten paljon viime tilikauden taseessa oli lyhytaikaista (alle vuoden mittaista) velkaa? | F30: 10000 | G30: euroa | H30: =+IF(F30>=0,"","Luvun pitää olla positiivinen tai nolla!") -> 
A31: Miten paljon viime tilikauden taseessa oli pitkäaikaista (yli vuoden mittaista) velkaa? | F31: 145000 | G31: euroa
A32: Miten paljon viime tilikauden omassa pääomassa oli kertyneitä voittovaroja? | F32: 2000 | G32: euroa
A33: Miten paljon viime tilikauden omassa pääomassa oli muuta omaa pääomaa? (kaikki muut erät kuin kertyneet voittovarat) | F33: 10000 | G33: euroa
A35: Huomaa, että olet edellä ilmoittanut viime tilikauden taseen lyhyt- ja pitkäaikaiseksi omaisuudeksi yhteensä: | F35: =+F14+SUM(F20:F24) -> 167000 | G35: euroa
A36: Huomaa, että olet edellä ilmoittanut viime tilikauden taseen pääomaksi (oma ja vieras pääoma) yhteensä: | F36: =+SUM(F30:F33) -> 167000 | G36: euroa
A38: =+IF(F35=F36,"Viime tilinpäätöksen taseen omaisuus- ja pääomapuoli ovat kuten pitääkin yhtä suuret, joten jatka tietojen syöttämistä.","Viime tilinpäätöksen taseen omaisuus- ja pääomapuoli eivät ole yhtä suuria! Korjaa annettuja tietoja.") -> Viime tilinpäätöksen taseen omaisuus- ja pääomapuoli ovat kuten pitääkin yhtä suuret, joten jatka tietojen syöttämistä.
A40: Syötä sen jälkeen seuraavat laskennassa tarvittavat tiedot:
F41: Muut tiedot | G41: %-osuus
A42: Kuinka monta prosenttia yrityksesi maksaa veroja verotettavasta tuloksesta? (esim. osakeyhtiöillä verokanta on 20 % 2021) | F42: 20 | G42: =+F42/100 -> 0.2 | H42: =+IF(F42>=0,"","Luvun pitää olla positiivinen tai nolla!") -> 
A43: Miten korkea on yrityksesi lyhytaikaisen (alle vuoden mittaisen) velan vuotuinen korkoprosentti? | F43: 3 | G43: 0.03
A44: Miten korkea on yrityksesi pitkäaikaisen (yli vuoden mittaisen) velan vuotuinen korkoprosentti? | F44: 2 | G44: 0.02
A45: Miten monta prosenttia (suunnilleen) pitkäaikaisesta velasta maksetaan vuosittain takaisin? | F45: 15 | G45: 0.15
A46: Miten paljon aiot nostaa yrityksestä voitto-osuutta (esim. osinkoja) prosentteina yrityksen tuottamista kertyneistä voitoista? | F46: 5 | G46: 0.05
A47: Miten paljon vähintään aiot pitää varoja lyhytaikaisessa omaisuudessa toiminnan pyörittämistä varten prosentteina liikevaihdosta? | F47: 5 | G47: 0.05
A48: Miten monta prosenttia arvioit yrityksesi liikevaihdon kasvavan vuosittain seuraavien viiden vuoden aikana? | F48: 5 | G48: 0.05
A49: Miten monta prosenttia arvioit yrityksesi kiinteiden kustannusten kasvavan vuosittain seuraavien viiden vuoden aikana? | F49: 3 | G49: 0.03
A51: Laadi sen jälkeen arvio täysihoito/valmennustallisi seuraavan vuoden liikevaihdosta.
A53: Minkä hintaiseksi arvioit pelkän täysihoitopaikan hinnan hevosta kohti kuukaudessa? (euroa / hevonen / kuukausi) | F53: 500 | G53: euroa / kk | H53: =+IF(F53>=0,"","Luvun pitää olla positiivinen tai nolla!") -> 
A54: Kuinka monta hevosta sinulla on tarkoitus ottaa pelkälle täysihoitopaikalle? | F54: 10 | G54: hevosta
A55: Millaiseksi arvioit tallin käyttöasteen vain täysihoitopaikoissa keskimäärin prosentteina 0 - 100 % (täysi talli)? | F55: 90 | G55: %
A56: Minkä hintaiseksi arvioit täysihoito- ja valmennuspaikan hinnan hevosta kohti kuukaudessa? (euroa / hevonen / kuukausi) | F56: 950 | G56: euroa / kk
A57: Kuinka monta hevosta sinulla on tarkoitus ottaa täysihoito/valmennuspaikalle? | F57: 10 | G57: hevosta
A58: Millaiseksi arvioit tallin käyttöasteen täysihoito/valmennuspaikoissa keskimäärin prosentteina 0 - 100 % (täysi talli)? | F58: 90 | G58: %
A59: Esittämiesi lukujen perusteella seuraavan vuoden liikevaihto siten seuraava: | F59: =12*F53*F54*F55/100+12*F56*F57*F58/100 -> 156600 | G59: euroa
A61: Täysihoito/valmennustallisi seuraavan vuoden ennakoitu liikevaihto on: | F61: =+F59 -> 156600 | G61: euroa
A62: Pelkästään täysihoidossa on keskimäärin hevosia käyttöaste huomioiden: | F62: =+F54*F55/100 -> 9 | G62: hevosta
A63: Täysihoito/valmennuksessa on keskimäärin hevosia käyttäaste huomioiden: | F63: =+F57*F58/100 -> 9 | G63: hevosta
A64: Hevosia on tallissasi keskimäärin yhteensä käyttöaste huomioiden: | F64: =+F62+F63 -> 18 | G64: hevosta | H64: =+IF(F64>=0,"","Luvun pitää olla positiivinen tai nolla!") -> 
A66: Laadi sitten arvio yrityksen kulujen määrästä.
A68: Muuttuvat kulut:
A69: Millaisiksi arvioit seuraavan vuoden muuttuvat kulut, jotka riippuvat suoraan hevosten määrästä? | F69: Vuodessa: | G69: Liikevaih-dosta, %
A70: Miten paljon kulut karkearehusta ovat hevosta kohti kuukaudessa (euroa / hevonen / kuukausi)? | E70: 100 | F70: =+E70*12*$F$64 -> 21600 | G70: =100*F70/$F$61 -> 13.79310345 | H70: =+IF(F70>=0,"","Luvun pitää olla positiivinen tai nolla!") -> 
A71: Miten paljon kulut väkirehusta ovat hevosta kohti kuukaudessa (euroa / hevonen / kuukausi)? | E71: 40 | F71: =+E71*12*$F$64 -> 8640 | G71: =100*F71/$F$61 -> 5.517241379
A72: Miten paljon kulut kivennäisistä ovat hevosta kohti kuukaudessa (euroa / hevonen / kuukausi)? | E72: 40 | F72: =+E72*12*$F$64 -> 8640 | G72: 5.517241379
A73: Miten paljon muut ruokintakulut ovat hevosta kohti kuukaudessa (euroa / hevonen / kuukausi)? | E73: 20 | F73: =+E73*12*$F$64 -> 4320 | G73: 2.75862069
A74: Miten paljon kuivikekulut ovat hevosta kohti kuukaudessa (euroa / hevonen / kuukausi)? | E74: 50 | F74: =+E74*12*$F$64 -> 10800 | G74: 6.896551724
A75: Miten suuriksi arvioit täysihoidon muuttuvat palkat (esim. hoitaja) lisineen hevosta kohti kuukaudessa? (euroa / hevonen / kuukausi) (älä laita tähän talliyrittäjän palkkaa) | E75: 100 | F75: =+F64*E75*12 -> 21600 | G75: 13.79310345
A76: Miten suuriksi arvioit valmennuksen muuttuvat palkat (esim. valmentaja) lisineen hevosta kohti kuukaudessa? (euroa / hevonen / kuukausi) (älä laita tähän talliyrittäjän palkkaa) | E76: 300 | F76: =+F63*E76*12 -> 32400 | G76: 20.68965517
A77: Miten paljon muut muuttuvat kulut (esim. talikot, siivoustarvikkeet) ovat hevosta kohti vuodessa (euroa / hevonen / vuosi)? | E77: 50 | F77: =+E77*$F$64 -> 900 | G77: 0.5747126437
A78: Seuraavan vuoden ennakoitu myyntikate (liikevaihto - muuttuvat kulut) on: | F78: =+F61-SUM(F70:F77) -> 47700 | G78: =100*F78/$F$61 -> 30.45977011
A80: Kiinteät kulut: | D80: =+IF(B80<0," Huom! Luvun pitää olla positiivinen tai nolla!","") -> 
A81: Millaisiksi arvioit seuraavan vuoden kiinteät kulut? | G81: Liikevaih-dosta, %
A82: Kuinka paljon arvioit vuokrakuluiksi kuukaudessa käyttämistäsi tiloista? (euroa / kuukausi) (jos vuokratiloja) | E82: 0 | F82: =12*E82 -> 0 | G82: =100*F82/$F$61 -> 0 | H82: =+IF(F82>=0,"","Luvun pitää olla positiivinen tai nolla!") -> 
A83: Kuinka paljon arvioit sähkön kulutuksen kuluiksi kuukaudessa? (euroa / kuukausi) | E83: 200 | F83: =12*E83 -> 2400 | G83: 1.53256705
A84: Kuinka paljon arvioit veden kulutuksen kuluiksi kuukaudessa? (euroa / kuukausi) | E84: 100 | F84: 1200 | G84: 0.7662835249
A85: Kuinka paljon arvioit pohjien huollon kuluiksi kuukaudessa (maneesi ja ratsastuskenttä)? (euroa / kuukausi) | E85: 250 | F85: 3000 | G85: 1.915708812
A86: Kuinka paljon arvioit lantalan tyhjennyksen kuluiksi kuukaudessa? (euroa / kuukausi) | E86: 100 | F86: 1200 | G86: 0.7662835249
A87: Kuinka suuriksi arvioit kiinteät palkkakustannukset lisineen (esim. tallityöntekijät, kirjanpitäjä) kuukaudessa? (älä laita tähän talliyrittäjän palkkaa) | E87: 2000 | F87: 24000 | G87: 15.3256705
A88: Kuinka suuriksi arvioit muut edellä mainitsemattomat kiinteät kulut kuukaudessa? (euroa / kuukausi) | E88: 100 | F88: 1200 | G88: 0.7662835249
A89: Seuraavan vuoden ennakoitu käyttökate (liikevaihto - muuttuvat kulut - kiinteät kulut) on: | F89: =+F78-SUM(F82:F88) -> 14700 | G89: 9.38697318
A91: Esittämiesi lukujen perusteella arvioit seuraavan vuoden kuluiksi yhteensä: | F91: =+SUM(F70:F77)+SUM(F82:F88) -> 141900 | G91: 90.61302682
A92: =+IF(F92>0,"Esittämiesi lukujen perusteella liikevaihdon ja muuttuvien kulujen erotus (myyntikate) on:","Muuta antamiasi tietoja, sillä liikevaihdon ja muuttuvien kulujen erotus on negatiivinen:") -> Esittämiesi lukujen perusteella liikevaihdon ja muuttuvien kulujen erotus (myyntikate) on: | F92: =+F78 -> 47700 | G92: 30.45977011
A93: =+IF(F93>0,"Esittämiesi lukujen perusteella liikevaihdon ja kaikkien kulujen erotus (käyttökate) on:","Muuta antamiasi tietoja, sillä liikevaihdon ja kulujen erotus on negatiivinen:") -> Esittämiesi lukujen perusteella liikevaihdon ja kaikkien kulujen erotus (käyttökate) on: | F93: =+F89 -> 14700 | G93: 9.38697318
A95: Mahdolliset uudet (seuraavan vuoden) investoinnit (pitkäaikaiset sijoitukset) täysihoito/valmennustalliin:
A96: Miten paljon aiot investoida euroissa täysihoito/valmennustalliin seuraavana vuonna? | G96: Liikevaih-dosta, %
A97: Miten paljon aiot sijoittaa euroja maa- ja vesialueisiin? (esim. tontin ostamiseen) | F97: 0 | G97: =100*F97/$F$61 -> 0 | H97: =+IF(F97>=0,"","Luvun pitää olla positiivinen tai nolla!") -> 
A98: Miten paljon aiot sijoittaa euroja rakennuksiin ja rakennelmiin? (esim. maneesi, talli, harjoitusravirata, tarhat) | F98: 20000 | G98: 12.77139208
A99: Miten paljon aiot sijoittaa euroja koneisiin ja kalustoon (esim. traktori, lana, pienkuormaaja)? | F99: 5000 | G99: 3.19284802
A100: Miten paljon aiot sijoittaa euroja aineettomaan käyttöomaisuuteen (esim. tietokoneohjelmat)? | F100: 2000 | G100: 1.277139208
A101: Miten paljon aiot sijoittaa euroja muuhun käyttöomaisuuteen (esim. työkalut, muu irtaimisto)? | F101: 500 | G101: 0.319284802
A102: Esittämiesi lukujen perusteella sijoitat euroja yrityksesi uuteen omaisuuteen yhteensä: | F102: =+SUM(F97:F101) -> 27500 | G102: 17.56066411
A104: Täyshoito/valmennustallin uusien investointien rahoitus:
A105: Millä tavalla aiot rahoittaa täysihoito/valmennustallin seuraavan toimintavuoden investoinnit? | G105: Liikevaih-dosta, %
A106: Miten paljon aiot ottaa lisää lyhytaikaista velkaa toimintaa varten? (euroja) | D106: =+IF(C106<0," Huom! Luvun pitää olla positiivinen tai nolla!","") ->  | F106: 2000 | G106: =100*F106/$F$61 -> 1.277139208 | H106: =+IF(F106>=0,"","Luvun pitää olla positiivinen tai nolla!") -> 
A107: Miten paljon aiot ottaa lisää pitkäaikaista velkaa investointien rahoittamista varten? (euroja) | D107: =+IF(C107<0," Huom! Luvun pitää olla positiivinen tai nolla!","") ->  | F107: 15000 | G107: 9.578544061
A108: Miten paljon aiot sijoittaa toimintaan lisää omaa pääomaa? (euroja) | F108: 5000 | G108: 3.19284802
A109: Esittämiesi lukujen perusteella otat seuraavana vuonna velkaa ja sijoitat omaa pääomaa yritykseesi yhteensä: | F109: =+SUM(F106:F108) -> 22000 | G109: 14.04853129
A111: Sijoittamasi oman pääoman osuus uudesta pääomarahoituksesta on: | F111: =100*F108/F109 -> 22.72727273 | G111: %
A112: Sijoitetun uuden oman pääoman ja otetun uuden pitkäaikaisen velan osuus uusien investointien rahoituksesta on: | F112: =100*(F107+F108)/F102 -> 72.72727273 | G112: %
A115: MALLIN TUOTTAMAT TILINPÄÄTÖSLASKELMAT VIIDELLE VUODELLE
A117: =+T!B3 -> ENNAKOITU TULOSLASKELMA
B118: =+T!C4 -> Ennakoidut viisi vuotta:
B119: =+T!C5 -> 1 | C119: =+T!D5 -> 2 | D119: =+T!E5 -> 3 | E119: =+T!F5 -> 4 | F119: =+T!G5 -> 5
A120: =+T!B6 -> Liikevaihto | B120: =+T!C6 -> 156600 | C120: =+T!D6 -> 164430 | D120: =+T!E6 -> 172651.5 | E120: =+T!F6 -> 181284.075 | F120: =+T!G6 -> 190348.2787
A121: =+T!B7 -> - Muuttuvat kulut
A122: =+T!B8 -> Karkearehu | B122: =+T!C8 -> 21600 | C122: =+T!D8 -> 22680 | D122: =+T!E8 -> 23814 | E122: =+T!F8 -> 25004.7 | F122: =+T!G8 -> 26254.935
A123: =+T!B9 -> Väkirehu | B123: =+T!C9 -> 8640 | C123: =+T!D9 -> 9072 | D123: =+T!E9 -> 9525.6 | E123: =+T!F9 -> 10001.88 | F123: =+T!G9 -> 10501.974
A124: =+T!B10 -> Kivennäiset | B124: =+T!C10 -> 8640 | C124: =+T!D10 -> 9072 | D124: =+T!E10 -> 9525.6 | E124: =+T!F10 -> 10001.88 | F124: =+T!G10 -> 10501.974
A125: =+T!B11 -> Muut ruokintakustannukset | B125: =+T!C11 -> 4320 | C125: =+T!D11 -> 4536 | D125: =+T!E11 -> 4762.8 | E125: =+T!F11 -> 5000.94 | F125: =+T!G11 -> 5250.987
A126: =+T!B12 -> Kuivikekustannukset | B126: =+T!C12 -> 10800 | C126: =+T!D12 -> 11340 | D126: =+T!E12 -> 11907 | E126: =+T!F12 -> 12502.35 | F126: =+T!G12 -> 13127.4675
A127: =+T!B13 -> Täyshoidon muuttuvat palkat lisineen | B127: =+T!C13 -> 21600 | C127: =+T!D13 -> 22680 | D127: =+T!E13 -> 23814 | E127: =+T!F13 -> 25004.7 | F127: =+T!G13 -> 26254.935
A128: =+T!B14 -> Valmennuksen muuttuvat palkat lisineen | B128: =+T!C14 -> 32400 | C128: =+T!D14 -> 34020 | D128: =+T!E14 -> 35721 | E128: =+T!F14 -> 37507.05 | F128: =+T!G14 -> 39382.4025
A129: =+T!B15 -> Muut muuttuvat kulut | B129: =+T!C15 -> 900 | C129: =+T!D15 -> 945 | D129: =+T!E15 -> 992.25 | E129: =+T!F15 -> 1041.8625 | F129: =+T!G15 -> 1093.955625
A130: =+T!B16 -> = Myyntikate | B130: =+T!C16 -> 47700 | C130: =+T!D16 -> 50085 | D130: =+T!E16 -> 52589.25 | E130: =+T!F16 -> 55218.7125 | F130: =+T!G16 -> 57979.64813
A131: =+T!B17 -> - Kiinteät kulut
A132: =+T!B18 -> Vuokrakulut | B132: =+T!C18 -> 0 | C132: =+T!D18 -> 0 | D132: =+T!E18 -> 0 | E132: =+T!F18 -> 0 | F132: =+T!G18 -> 0
A133: =+T!B19 -> Sähkökulut | B133: =+T!C19 -> 2400 | C133: =+T!D19 -> 2472 | D133: =+T!E19 -> 2546.16 | E133: =+T!F19 -> 2622.5448 | F133: =+T!G19 -> 2701.221144
A134: =+T!B20 -> Vesikulut | B134: =+T!C20 -> 1200 | C134: =+T!D20 -> 1236 | D134: =+T!E20 -> 1273.08 | E134: =+T!F20 -> 1311.2724 | F134: =+T!G20 -> 1350.610572
A135: =+T!B21 -> Pohjien huolto | B135: =+T!C21 -> 3000 | C135: =+T!D21 -> 3090 | D135: =+T!E21 -> 3182.7 | E135: =+T!F21 -> 3278.181 | F135: =+T!G21 -> 3376.52643
A136: =+T!B22 -> Lantalan tyhjennys | B136: =+T!C22 -> 1200 | C136: =+T!D22 -> 1236 | D136: =+T!E22 -> 1273.08 | E136: =+T!F22 -> 1311.2724 | F136: =+T!G22 -> 1350.610572
A137: =+T!B23 -> Kiinteät palkkakustannukset lisineen | B137: =+T!C23 -> 24000 | C137: =+T!D23 -> 24720 | D137: =+T!E23 -> 25461.6 | E137: =+T!F23 -> 26225.448 | F137: =+T!G23 -> 27012.21144
A138: =+T!B25 -> = Käyttökate | B138: =+T!C25 -> 14700 | C138: =+T!D25 -> 16095 | D138: =+T!E25 -> 17579.55 | E138: =+T!F25 -> 19158.7215 | F138: =+T!G25 -> 20837.8574
A139: =+T!B26 -> - Poistot
A140: =+T!B27 -> Maa- ja vesialueet | B140: =+T!C27 -> 0 | C140: =+T!D27 -> 0 | D140: =+T!E27 -> 0 | E140: =+T!F27 -> 0 | F140: =+T!G27 -> 0
A141: =+T!B28 -> Rakennukset ja rakennelmat | B141: =+T!C28 -> 5714.285714 | C141: =+T!D28 -> 5442.176871 | D141: =+T!E28 -> 5183.025591 | E141: =+T!F28 -> 4936.214849 | F141: =+T!G28 -> 4701.156999
A142: =+T!B29 -> Koneet ja kalusto | B142: =+T!C29 -> 5000 | C142: =+T!D29 -> 4375 | D142: =+T!E29 -> 3828.125 | E142: =+T!F29 -> 3349.609375 | F142: =+T!G29 -> 2930.908203
A143: =+T!B30 -> Aineeton käyttöomaisuus | B143: =+T!C30 -> 600 | C143: =+T!D30 -> 480 | D143: =+T!E30 -> 384 | E143: =+T!F30 -> 307.2 | F143: =+T!G30 -> 245.76
A144: =+T!B31 -> Muu käyttöomaisuus | B144: =+T!C31 -> 300 | C144: =+T!D31 -> 240 | D144: =+T!E31 -> 192 | E144: =+T!F31 -> 153.6 | F144: =+T!G31 -> 122.88
A145: =+T!B32 -> = Liiketulos | B145: =+T!C32 -> 3085.714286 | C145: =+T!D32 -> 5557.823129 | D145: =+T!E32 -> 7992.399409 | E145: =+T!F32 -> 10412.09728 | F145: =+T!G32 -> 12837.15219
A146: =+T!B33 -> - Korkokulut | B146: =+T!C33 -> 3260 | C146: =+T!D33 -> 3534.2 | D146: =+T!E33 -> 3413.87631 | E146: =+T!F33 -> 3229.133229 | F146: =+T!G33 -> 2983.649634
A147: =+T!B34 -> - Verot | B147: =+T!C34 -> 0 | C147: =+T!D34 -> 404.7246259 | D147: =+T!E34 -> 915.7046197 | E147: =+T!F34 -> 1436.59281 | F147: =+T!G34 -> 1970.700512
A148: =+T!B35 -> Tilikauden tulos | B148: =+T!C35 -> -174.2857143 | C148: =+T!D35 -> 1618.898503 | D148: =+T!E35 -> 3662.818479 | E148: =+T!F35 -> 5746.371238 | F148: =+T!G35 -> 7882.802048
A150: =+T!B37 -> ENNAKOITU TASE
B151: =+T!C38 -> Ennakoidut viisi vuotta:
B152: =+T!C39 -> 1 | C152: =+T!D39 -> 2 | D152: =+T!E39 -> 3 | E152: =+T!F39 -> 4 | F152: =+T!G39 -> 5
A153: =+T!B40 -> Taseen omaisuus
A154: =+T!B41 -> Lyhytaikainen:
A155: =+T!B42 -> Rahoitusomaisuus ja muu lyhytaikainen omaisuus | B155: =+T!C42 -> 7830 | C155: =+T!D42 -> 8221.5 | D155: =+T!E42 -> 8632.575 | E155: =+T!F42 -> 9064.20375 | F155: =+T!G42 -> 10217.89124
A156: =+T!B43 -> Pitkäaikainen:
A157: =+T!B44 -> Maa- ja vesialueet | B157: =+T!C44 -> 20000 | C157: =+T!D44 -> 20000 | D157: =+T!E44 -> 20000 | E157: =+T!F44 -> 20000 | F157: =+T!G44 -> 20000
A158: =+T!B45 -> Rakennukset ja rakennelmat | B158: =+T!C45 -> 114285.7143 | C158: =+T!D45 -> 108843.5374 | D158: =+T!E45 -> 103660.5118 | E158: =+T!F45 -> 98724.29698 | F158: =+T!G45 -> 94023.13998
A159: =+T!B46 -> Koneet ja kalusto | B159: =+T!C46 -> 35000 | C159: =+T!D46 -> 30625 | D159: =+T!E46 -> 26796.875 | E159: =+T!F46 -> 23447.26562 | F159: =+T!G46 -> 20516.35742
A160: =+T!B47 -> Aineeton käyttöomaisuus | B160: =+T!C47 -> 2400 | C160: =+T!D47 -> 1920 | D160: =+T!E47 -> 1536 | E160: =+T!F47 -> 1228.8 | F160: =+T!G47 -> 983.04
A161: =+T!B48 -> Muu käyttöomaisuus | B161: =+T!C48 -> 1200 | C161: =+T!D48 -> 960 | D161: =+T!E48 -> 768 | E161: =+T!F48 -> 614.4 | F161: =+T!G48 -> 491.52
A162: =+T!B49 -> Yhteensä | B162: =+T!C49 -> 180715.7143 | C162: =+T!D49 -> 170570.0374 | D162: =+T!E49 -> 161393.9618 | E162: =+T!F49 -> 153078.9664 | F162: =+T!G49 -> 146231.9486
A164: =+T!B51 -> Taseen pääoma
A165: =+T!B52 -> Lyhytaikainen:
A166: =+T!B53 -> Lyhytaikaiset velat (maks. voitto-osuus) | B166: =+T!C53 -> 91.28571429 | C166: =+T!D53 -> 167.6663537 | D166: =+T!E53 -> 342.42396 | E166: =+T!F53 -> 612.6213239 | F166: =+T!G53 -> 976.1303601
A167: =+T!B54 -> Muu lyhytaikainen vieras pääoma | B167: =+T!C54 -> 25640 | C167: =+T!D54 -> 36954.21034 | D167: =+T!E54 -> 43822.35762 | E167: =+T!F54 -> 46711.88362 | F167: =+T!G54 -> 46711.88362
A168: =+T!B55 -> Pitkäaikainen:
A169: =+T!B56 -> Pitkäaikainen vieras pääoma | B169: =+T!C56 -> 138250 | C169: =+T!D56 -> 115262.5 | D169: =+T!E56 -> 95723.125 | E169: =+T!F56 -> 79114.65625 | F169: =+T!G56 -> 64997.45781
A170: =+T!B57 -> Sijoitettu oma pääoma | B170: =+T!C57 -> 15000 | C170: =+T!D57 -> 15000 | D170: =+T!E57 -> 15000 | E170: =+T!F57 -> 15000 | F170: =+T!G57 -> 15000
A171: =+T!B58 -> Kertyneet voittovarat ja muu oma pääoma | B171: =+T!C58 -> 1734.428571 | C171: =+T!D58 -> 3185.660721 | D171: =+T!E58 -> 6506.05524 | E171: =+T!F58 -> 11639.80515 | F171: =+T!G58 -> 18546.47684
A172: =+T!B59 -> Yhteensä | B172: =+T!C59 -> 180715.7143 | C172: =+T!D59 -> 170570.0374 | D172: =+T!E59 -> 161393.9618 | E172: =+T!F59 -> 153078.9664 | F172: =+T!G59 -> 146231.9486
A174: =+T!B61 -> ENNAKOIDUT TUNNUSLUVUT
B175: =+T!C62 -> Ennakoidut viisi vuotta:
B176: =+T!C63 -> 1 | C176: =+T!D63 -> 2 | D176: =+T!E63 -> 3 | E176: =+T!F63 -> 4 | F176: =+T!G63 -> 5
A177: =+T!B64 -> Koko
A178: =+T!B65 -> 1. Liikevaihto (Euro) | B178: =+T!C65 -> 156600 | C178: =+T!D65 -> 164430 | D178: =+T!E65 -> 172651.5 | E178: =+T!F65 -> 181284.075 | F178: =+T!G65 -> 190348.2787
A179: =+T!B66 -> 2. Taseen loppusumma (Euro) | B179: =+T!C66 -> 180715.7143 | C179: =+T!D66 -> 170570.0374 | D179: =+T!E66 -> 161393.9618 | E179: =+T!F66 -> 153078.9664 | F179: =+T!G66 -> 146231.9486
A180: =+T!B67 -> 3. Tilikauden tulos (Euro) | B180: =+T!C67 -> -174.2857143 | C180: =+T!D67 -> 1618.898503 | D180: =+T!E67 -> 3662.818479 | E180: =+T!F67 -> 5746.371238 | F180: =+T!G67 -> 7882.802048
A181: =+T!B68 -> 4. Voitto-osuus omistajalle (Euro) | B181: =+T!C68 -> 91.28571429 | C181: =+T!D68 -> 167.6663537 | D181: =+T!E68 -> 342.42396 | E181: =+T!F68 -> 612.6213239 | F181: =+T!G68 -> 976.1303601
A183: =+T!B70 -> Kasvu
A184: =+T!B71 -> 1. Liikevaihdon kasvu-% | C184: =+T!D71 -> 5 | D184: =+T!E71 -> 5 | E184: =+T!F71 -> 5 | F184: =+T!G71 -> 5
A185: =+T!B72 -> 2. Taseen loppusumman kasvu-% | C185: =+T!D72 -> -5.614164164 | D185: =+T!E72 -> -5.379652681 | E185: =+T!F72 -> -5.151986716 | F185: =+T!G72 -> -4.472866441
A186: =+T!B73 -> 3. Tilikauden tuloksen kasvu-% | C186: =+T!D73 -> -1028.87619 | D186: =+T!E73 -> 126.2537442 | E186: =+T!F73 -> 56.8838661 | F186: =+T!G73 -> 37.17878155
A188: =+T!B75 -> Kannattavuus
A189: =+T!B76 -> 1. Käyttökate / Liikevaihto (%) | B189: =+T!C76 -> 9.38697318 | C189: =+T!D76 -> 9.788359788 | D189: =+T!E76 -> 10.18210094 | E189: =+T!F76 -> 10.56834226 | F189: =+T!G76 -> 10.9472266
A190: =+T!B77 -> 2. Liiketulos / Liikevaihto (%) | B190: =+T!C77 -> 1.97044335 | C190: =+T!D77 -> 3.380054205 | D190: =+T!E77 -> 4.629209366 | E190: =+T!F77 -> 5.743525611 | F190: =+T!G77 -> 6.744033767
A191: =+T!B78 -> 3. Tilikauden tulos / Liikevaihto (%) | B191: =+T!C78 -> -0.1112935596 | C191: =+T!D78 -> 0.984551787 | D191: =+T!E78 -> 2.121509792 | E191: =+T!F78 -> 3.169815792 | F191: =+T!G78 -> 4.141252077
A192: =+T!B79 -> 4. Sijoitetun pääoman tuotto-% | C192: =+T!D79 -> 3.075450938 | D192: =+T!E79 -> 4.685699511 | E192: =+T!F79 -> 6.451354907 | F192: =+T!G79 -> 8.385967386
A193: =+T!B80 -> 5. Oman pääoman tuotto-% | C193: =+T!D80 -> 9.67405906 | D193: =+T!E80 -> 20.14124499 | E193: =+T!F80 -> 26.71978275 | F193: =+T!G80 -> 29.5903142
A195: =+T!B82 -> Maksuvalmius
A196: =+T!B83 -> 1. Rahoitustulos / Liikevaihto | B196: =+T!C83 -> 7.305236271 | C196: =+T!D83 -> 7.39285737 | D196: =+T!E83 -> 7.674401363 | E196: =+T!F83 -> 7.994632436 | F196: =+T!G83 -> 8.344444906
A197: =+T!B84 -> 2. Quick ratio | B197: =+T!C84 -> 0.3042988247 | C197: =+T!D84 -> 0.2214731779 | D197: =+T!E84 -> 0.1954628709 | E197: =+T!F84 -> 0.1915329861 | F197: =+T!G84 -> 0.2142653968
A199: =+T!B86 -> Vakavaraisuus
A200: =+T!B87 -> 1. Omavaraisuusaste | B200: =+T!C87 -> 9.260084901 | C200: =+T!D87 -> 10.66169709 | D200: =+T!E87 -> 13.32519197 | E200: =+T!F87 -> 17.4026555 | F200: =+T!G87 -> 22.94059346
A201: =+T!B88 -> 2. Rahoitustulos / Velat (%) | B201: =+T!C88 -> 6.976405844 | C201: =+T!D88 -> 7.977245199 | D201: =+T!E88 -> 9.47184742 | E201: =+T!F88 -> 11.46242614 | F201: =+T!G88 -> 14.09543484
A203: =+T!B90 -> Rahoitusriski: Taipumus kuulua konkurssiyritysten (1) tai toimivien yritysten (0) joukkoon
A204: =+T!B91 -> 1. Kolmen muuttujan P-luku | B204: =+T!C91 -> 0.6243510416 | C204: =+T!D91 -> 0.6159914229 | D204: =+T!E91 -> 0.5984119901 | E204: =+T!F91 -> 0.5709460837 | F204: =+T!G91 -> 0.532903175
A207: =+T!B94 -> TULKINTARAPORTTI
B209: =+T!C96 -> Ennakoidut viisi vuotta:
B210: =+T!C97 -> 1 | C210: =+T!D97 -> 2 | D210: =+T!E97 -> 3 | E210: =+T!F97 -> 4 | F210: =+T!G97 -> 5
A211: =+T!B98 -> Kannattavuus
A212: =+T!B99 -> Käyttökate / Myyntituotot (%) | B212: =+T!C99 -> Positiivinen | C212: =+T!D99 -> Positiivinen | D212: =+T!E99 -> Positiivinen | E212: =+T!F99 -> Positiivinen | F212: =+T!G99 -> Positiivinen
A213: =+T!B100 -> Sijoitetun pääoman tuotto-% | C213: =+T!D100 -> Välttävä | D213: =+T!E100 -> Välttävä | E213: =+T!F100 -> Tyydyttävä | F213: =+T!G100 -> Tyydyttävä
A214: =+T!B101 -> Oman pääoman tuotto-% | C214: =+T!D101 -> Välttävä | D214: =+T!E101 -> Erinomainen | E214: =+T!F101 -> Erinomainen | F214: =+T!G101 -> Erinomainen
A216: =+T!B103 -> Maksuvalmius
A217: =+T!B104 -> Rahoitustulos / Myyntituotot | B217: =+T!C104 -> Positiivinen | C217: =+T!D104 -> Positiivinen | D217: =+T!E104 -> Positiivinen | E217: =+T!F104 -> Positiivinen | F217: =+T!G104 -> Positiivinen
A218: =+T!B105 -> Quick ratio | B218: =+T!C105 -> Välttävä | C218: =+T!D105 -> Heikko | D218: =+T!E105 -> Heikko | E218: =+T!F105 -> Heikko | F218: =+T!G105 -> Heikko
A220: =+T!B107 -> Vakavaraisuus
A221: =+T!B108 -> Omavaraisuusaste | B221: =+T!C108 -> Heikko | C221: =+T!D108 -> Heikko | D221: =+T!E108 -> Heikko | E221: =+T!F108 -> Välttävä | F221: =+T!G108 -> Välttävä
A222: =+T!B109 -> Rahoitustulos / Velat (%) | B222: =+T!C109 -> Heikko | C222: =+T!D109 -> Heikko | D222: =+T!E109 -> Heikko | E222: =+T!F109 -> Välttävä | F222: =+T!G109 -> Välttävä
A224: =+T!B111 -> Rahoitusriski
A225: =+T!B112 -> Kolmen muuttujan P-luku | B225: =+T!C112 -> Suuri riski | C225: =+T!D112 -> Suuri riski | D225: =+T!E112 -> Suuri riski | E225: =+T!F112 -> Suuri riski | F225: =+T!G112 -> Suuri riski
A227: =+T!B115 -> LIITEKUVIOT
A299: Tämä raportti on suuntaa-antava laskelma siitä, miten täysihoito/valmennustallisi voisi antamillasi lähtötiedoilla taloudellisesti menestyä viiden seuraavan vuoden aikana. Tehdyt laskelmat perustuvat omiin arvioihisi esimerkiksi yrityksesi kasvusta ja velkojen korkokannoista. Laskelmissa ei ole huomioitu erikseen arvonlisäveroa. Vastuu laskelmien hyödyntämisestä on ohjelman käyttäjällä. Copyright Vaasan Yritysinformaatio Oy.

Sheet E (hidden)
A1: 1 | B1: =+A1+1 -> 2 | C1: =+B1+1 -> 3 | D1: 4 | E1: 5 | F1: 6 | G1: 7 | H1: 8
A2: Copyright Vaasan Yritysinformaatio Oy. Kaikki tekijänoikeudet pidätetään.
A3: TOIMIVAN RATSASTUSKOULUN TILINPÄÄTÖSENNUSTE VIIDELLE VUODELLE
A5: LIIKEVAIHDON KASVUENNUSTE
B6: Lähtöoletus: | D6: Vuodet:
D7: 1 | E7: 2 | F7: 3 | G7: 4 | H7: 5
A8: Ensimmäisen vuoden liikevaihto | B8: =+K!F61 -> 156600 | D8: =+$B$8*(1+$B$9)^(D$7-1) -> 156600 | E8: =+$B$8*(1+$B$9)^(E$7-1) -> 164430 | F8: 172651.5 | G8: 181284.075 | H8: 190348.2787
A9: Liikevaihdon arvioitu kasvuvauhti | B9: =+K!G48 -> 0.05
A10: Kiinteiden kulujen arvioitu kasvuvauhti | B10: =+K!G49 -> 0.03
A13: Verokanta | B13: =+K!G42 -> 0.2
A14: Lyhytaikaisen vieraan pääoman korko-% | B14: =+K!G43 -> 0.03
A15: Pitkäaikaisen vieraan pääoman korko-% | B15: =+K!G44 -> 0.02
A16: Voitto-osuus-% kertyneistä voitoista | B16: =+K!G46 -> 0.05
A17: Pitkäaikaisen velan lyhennysosuus (%) | B17: =+K!G45 -> 0.15
A18: Rahoitusomaisuus / Liikevaihto | B18: =+K!G47 -> 0.05 | C18: Minimitaso | D18: Toimivien yritysten keskiarvo
A19: Vaihto-omaisuus / Liikevaihto | B19: 0 | C19: Taso
A20: Myyntisaamisten kasvu-% | B20: 0
A21: Ostovelkojen kasvu-% | B21: 0
A23: KASSAVIRTAENNUSTE (Euro)
D25: =+D7 -> 1 | E25: =+D25+1 -> 2 | F25: =+E25+1 -> 3 | G25: 4 | H25: 5
A26: Liikevaihto | B26: %-osuus | D26: =+D8 -> 156600 | E26: =+E8 -> 164430 | F26: =+F8 -> 172651.5 | G26: =+G8 -> 181284.075 | H26: =+H8 -> 190348.2787
A27: - Muuttuvat kulut
A28: Karkearehu | B28: =+K!G70/100 -> 0.1379310345 | D28: =+$B28*D$26 -> 21600 | E28: 22680 | F28: 23814 | G28: 25004.7 | H28: 26254.935
A29: Väkirehu | B29: =+K!G71/100 -> 0.05517241379 | D29: 8640 | E29: 9072 | F29: 9525.6 | G29: 10001.88 | H29: 10501.974
A30: Kivennäiset | B30: =+K!G72/100 -> 0.05517241379 | D30: 8640 | E30: 9072 | F30: 9525.6 | G30: 10001.88 | H30: 10501.974
A31: Muut ruokintakustannukset | B31: =+K!G73/100 -> 0.0275862069 | D31: 4320 | E31: 4536 | F31: 4762.8 | G31: 5000.94 | H31: 5250.987
A32: Kuivikekustannukset | B32: =+K!G74/100 -> 0.06896551724 | D32: 10800 | E32: 11340 | F32: 11907 | G32: 12502.35 | H32: 13127.4675
A33: Täyshoidon muuttuvat palkat lisineen | B33: =+K!G75/100 -> 0.1379310345 | D33: 21600 | E33: 22680 | F33: 23814 | G33: 25004.7 | H33: 26254.935
A34: Valmennuksen muuttuvat palkat lisineen | B34: =+K!G76/100 -> 0.2068965517 | D34: 32400 | E34: 34020 | F34: 35721 | G34: 37507.05 | H34: 39382.4025
A35: Muut muuttuvat kulut | B35: =+K!G77/100 -> 0.005747126437 | D35: 900 | E35: 945 | F35: 992.25 | G35: 1041.8625 | H35: 1093.955625
A36: = Myyntikate (menopohjainen) | B36: =+K!G78/100 -> 0.3045977011 | D36: =+D26-SUM(D28:D35) -> 47700 | E36: =+E26-SUM(E28:E35) -> 50085 | F36: =+F26-SUM(F28:F35) -> 52589.25 | G36: =+G26-SUM(G28:G35) -> 55218.7125 | H36: =+H26-SUM(H28:H35) -> 57979.64813
A37: - Kiinteät kulut
A38: Vuokrakulut | B38: =+K!F82 -> 0 | D38: =+$B38*(1+$B$10)^(D$25-1) -> 0 | E38: 0 | F38: 0 | G38: 0 | H38: 0
A39: Sähkökulut | B39: =+K!F83 -> 2400 | D39: 2400 | E39: 2472 | F39: 2546.16 | G39: 2622.5448 | H39: 2701.221144
A40: Vesikulut | B40: =+K!F84 -> 1200 | D40: 1200 | E40: 1236 | F40: 1273.08 | G40: 1311.2724 | H40: 1350.610572
A41: Pohjien huolto | B41: =+K!F85 -> 3000 | D41: 3000 | E41: 3090 | F41: 3182.7 | G41: 3278.181 | H41: 3376.52643
A42: Lantalan tyhjennys | B42: =+K!F86 -> 1200 | D42: 1200 | E42: 1236 | F42: 1273.08 | G42: 1311.2724 | H42: 1350.610572
A43: Kiinteät palkkakustannukset lisineen | B43: =+K!F87 -> 24000 | D43: 24000 | E43: 24720 | F43: 25461.6 | G43: 26225.448 | H43: 27012.21144
A44: Muut kiinteät kulut | B44: =+K!F88 -> 1200 | D44: 1200 | E44: 1236 | F44: 1273.08 | G44: 1311.2724 | H44: 1350.610572
A45: = Käyttökate (menopohjainen) | D45: =+D36-SUM(D38:D44) -> 14700 | E45: =+E36-SUM(E38:E44) -> 16095 | F45: 17579.55 | G45: 19158.7215 | H45: 20837.8574
A46: Korkomenot | B46: automaatti | D46: =+$B$14*C$125+$B$15*C$127 -> 3260 | E46: =+$B$14*D$125+$B$15*D$127 -> 3534.2 | F46: =+$B$14*E$125+$B$15*E$127 -> 3413.87631 | G46: =+$B$14*F$125+$B$15*F$127 -> 3229.133229 | H46: =+$B$14*G$125+$B$15*G$127 -> 2983.649634
A47: Verot | B47: automaatti | D47: =+D106 -> 0 | E47: =+E106 -> 404.7246259 | F47: =+F106 -> 915.7046197 | G47: =+G106 -> 1436.59281 | H47: =+H106 -> 1970.700512
A48: Osingot | B48: automaatti | D48: 0 | E48: =+D133 -> 91.28571429 | F48: =+E133 -> 167.6663537 | G48: =+F133 -> 342.42396 | H48: =+G133 -> 612.6213239
A49: = Rahoitustulos (menopohjainen) | D49: =+D45-SUM(D46:D48) -> 11440 | E49: =+E45-SUM(E46:E48) -> 12064.78966 | F49: 13082.30272 | G49: 14150.5715 | H49: 15270.88593
A50: - Investoinnit
A51: Maa- ja vesialueet | B51: =+K!F97 -> 0 | C51: =+B51 -> 0 | D51: =+B51 -> 0 | E51: 0 | F51: 0 | G51: 0 | H51: 0
A52: Rakennukset ja rakennelmat | B52: =+K!F98 -> 20000 | C52: =+B52 -> 20000 | D52: =+B52 -> 20000 | E52: 0 | F52: 0 | G52: 0 | H52: 0
A53: Koneet ja kalusto | B53: =+K!F99 -> 5000 | C53: 5000 | D53: 5000 | E53: 0 | F53: 0 | G53: 0 | H53: 0
A54: Aineeton käyttöomaisuus | B54: =+K!F100 -> 2000 | C54: 2000 | D54: 2000 | E54: 0 | F54: 0 | G54: 0 | H54: 0
A55: Muu käyttöomaisuus | B55: =+K!F101 -> 500 | C55: 500 | D55: 500 | E55: 0 | F55: 0 | G55: 0 | H55: 0
A56: - Kassavirtamuunnos
A57: = Investointijäämä | D57: =+D49-SUM(D51:D56) -> -16060 | E57: =+E49-SUM(E51:E56) -> 12064.78966 | F57: =+F49-SUM(F51:F56) -> 13082.30272 | G57: =+G49-SUM(G51:G56) -> 14150.5715 | H57: =+H49-SUM(H51:H56) -> 15270.88593
A58: + Muun rahoitusomaisuuden vähennys | B58: automaatti | D58: =-$B$18*D$78+C113 -> 2170 | E58: =-$B$18*E$78+D113 -> -391.5 | F58: =-$B$18*F$78+E113 -> -411.075 | G58: =-$B$18*G$78+F113 -> -431.62875 | H58: =-$B$18*H$78+G113 -> -453.2101875
A59: + Muun lyhytaikaisen vieraan pääoman lisäys | B59: =+K!F106 -> 2000 | D59: =+K!F106 -> 2000 | E59: 0 | F59: 0 | G59: 0 | H59: 0
A60: + Pitkäaikaisen vieraan pääoman lisäys | B60: =+K!F107 -> 15000 | C60: =+K!F31 -> 145000 | D60: =+B60-$B$17*C60 -> -6750 | E60: =-SUM($B60:D60)*$B$17 -> -22987.5 | F60: =-SUM($B60:E60)*$B$17 -> -19539.375 | G60: =-SUM($B60:F60)*$B$17 -> -16608.46875 | H60: =-SUM($B60:G60)*$B$17 -> -14117.19844
A61: + Oman pääoman lisäys | B61: =+K!F108 -> 5000 | D61: =+K!F108 -> 5000 | E61: 0 | F61: 0 | G61: 0 | H61: 0
A62: - Rahoitusomaisuuden lisäys (tasoitus) | B62: automaatti | D62: =+IF(SUM(D57:D61)>0,-SUM(D57:D61),0) -> 0 | E62: =+IF(SUM(E57:E61)>0,-SUM(E57:E61),0) -> 0 | F62: 0 | G62: 0 | H62: -700.4773006
A63: = Netto rahoituksen jälkeen (0) | D63: =+SUM(D57:D62) -> -13640 | E63: =+SUM(E57:E62) -> -11314.21034 | F63: =+SUM(F57:F62) -> -6868.147284 | G63: =+SUM(G57:G62) -> -2889.525998 | H63: =+SUM(H57:H62) -> 0
D64: =+IF(D63=0," ","Huom! Ei 0") -> Huom! Ei 0 | E64: =+IF(E63=0," ","Huom! Ei 0") -> Huom! Ei 0 | F64: Huom! Ei 0 | G64: Huom! Ei 0
D65: Lyhytaikaisen velan
D66: lisäykseen
A68: Poistot: | B68: Käyttöomaisuus | C68: Poisto-% | D68: Poisto
A69: =+A51 -> Maa- ja vesialueet | B69: =+K!F20+K!F97 -> 20000 | C69: =+IF(K!F20=0,0,+K!G20/(K!F20+K!G20)) -> 0 | D69: =+C69*B69 -> 0
A70: =+A52 -> Rakennukset ja rakennelmat | B70: =+K!F21+K!F98 -> 120000 | C70: =+IF(K!F21=0,0,+K!G21/(K!F21+K!G21)) -> 0.04761904762 | D70: =+C70*B70 -> 5714.285714
A71: =+A53 -> Koneet ja kalusto | B71: =+K!F22+K!F99 -> 40000 | C71: =+IF(K!F22=0,0,+K!G22/(K!F22+K!G22)) -> 0.125 | D71: 5000
A72: Aineeton käyttöomaisuus | B72: =+K!F23+K!F100 -> 3000 | C72: =+IF(K!F23=0,0,+K!G23/(K!F23+K!G23)) -> 0.2 | D72: 600
A73: =+A55 -> Muu käyttöomaisuus | B73: =+K!F24+K!F101 -> 1500 | C73: =+IF(K!F24=0,0,+K!G24/(K!F24+K!G24)) -> 0.2 | D73: 300
A75: TULOSLASKELMAENNUSTE (Euro)
D76: Ennusteet:
D77: =+D25 -> 1 | E77: 2 | F77: 3 | G77: 4 | H77: 5
A78: Liikevaihto | D78: 156600 | E78: 164430 | F78: 172651.5 | G78: 181284.075 | H78: 190348.2787
A79: - Muuttuvat kulut
A80: Karkearehu | D80: =+D28 -> 21600 | E80: 22680 | F80: 23814 | G80: 25004.7 | H80: 26254.935
A81: Väkirehu | D81: 8640 | E81: 9072 | F81: 9525.6 | G81: 10001.88 | H81: 10501.974
A82: Kivennäiset | D82: 8640 | E82: 9072 | F82: 9525.6 | G82: 10001.88 | H82: 10501.974
A83: Muut ruokintakustannukset | D83: 4320 | E83: 4536 | F83: 4762.8 | G83: 5000.94 | H83: 5250.987
A84: Kuivikekustannukset | D84: 10800 | E84: 11340 | F84: 11907 | G84: 12502.35 | H84: 13127.4675
A85: Täyshoidon muuttuvat palkat lisineen | D85: 21600 | E85: 22680 | F85: 23814 | G85: 25004.7 | H85: 26254.935
A86: Valmennuksen muuttuvat palkat lisineen | D86: 32400 | E86: 34020 | F86: 35721 | G86: 37507.05 | H86: 39382.4025
A87: Muut muuttuvat kulut | D87: 900 | E87: 945 | F87: 992.25 | G87: 1041.8625 | H87: 1093.955625
A88: = Myyntikate | D88: =+D78-SUM(D80:D87) -> 47700 | E88: =+E78-SUM(E80:E87) -> 50085 | F88: =+F78-SUM(F80:F87) -> 52589.25 | G88: =+G78-SUM(G80:G87) -> 55218.7125 | H88: =+H78-SUM(H80:H87) -> 57979.64813
A89: - Kiinteät kulut
A90: Vuokrakulut | D90: =+D38 -> 0 | E90: 0 | F90: 0 | G90: 0 | H90: 0
A91: Sähkökulut | D91: 2400 | E91: 2472 | F91: 2546.16 | G91: 2622.5448 | H91: 2701.221144
A92: Vesikulut | D92: 1200 | E92: 1236 | F92: 1273.08 | G92: 1311.2724 | H92: 1350.610572
A93: Pohjien huolto | D93: 3000 | E93: 3090 | F93: 3182.7 | G93: 3278.181 | H93: 3376.52643
A94: Lantalan tyhjennys | D94: 1200 | E94: 1236 | F94: 1273.08 | G94: 1311.2724 | H94: 1350.610572
A95: Kiinteät palkkakustannukset lisineen | D95: 24000 | E95: 24720 | F95: 25461.6 | G95: 26225.448 | H95: 27012.21144
A96: Muut kiinteät kulut | D96: 1200 | E96: 1236 | F96: 1273.08 | G96: 1311.2724 | H96: 1350.610572
A97: = Käyttökate | D97: =+D88-SUM(D90:D96) -> 14700 | E97: =+E88-SUM(E90:E96) -> 16095 | F97: 17579.55 | G97: 19158.7215 | H97: 20837.8574
A98: - Poistot
A99: =+A51 -> Maa- ja vesialueet | C99: =+B69 -> 20000 | D99: =+C115-D115 -> 0 | E99: =+D115-E115 -> 0 | F99: 0 | G99: 0 | H99: 0
A100: =+A52 -> Rakennukset ja rakennelmat | C100: =+B70 -> 120000 | D100: =+C116-D116 -> 5714.285714 | E100: 5442.176871 | F100: 5183.025591 | G100: 4936.214849 | H100: 4701.156999
A101: =+A53 -> Koneet ja kalusto | C101: =+B71 -> 40000 | D101: =+C117-D117 -> 5000 | E101: 4375 | F101: 3828.125 | G101: 3349.609375 | H101: 2930.908203
A102: =+A54 -> Aineeton käyttöomaisuus | C102: =+B72 -> 3000 | D102: =+C118-D118 -> 600 | E102: 480 | F102: 384 | G102: 307.2 | H102: 245.76
A103: =+A55 -> Muu käyttöomaisuus | C103: =+B73 -> 1500 | D103: =+C119-D119 -> 300 | E103: 240 | F103: 192 | G103: 153.6 | H103: 122.88
A104: = Liiketulos | D104: =+D97-SUM(D99:D103) -> 3085.714286 | E104: =+E97-SUM(E99:E103) -> 5557.823129 | F104: =+F97-SUM(F99:F103) -> 7992.399409 | G104: =+G97-SUM(G99:G103) -> 10412.09728 | H104: =+H97-SUM(H99:H103) -> 12837.15219
A105: - Korkokulut | D105: =+D46 -> 3260 | E105: =+E46 -> 3534.2 | F105: =+F46 -> 3413.87631 | G105: =+G46 -> 3229.133229 | H105: =+H46 -> 2983.649634
A106: - Verot | D106: =+IF((D104-D105)>0,$B$13*(D104-D105),0) -> 0 | E106: =+IF((E104-E105)>0,$B$13*(E104-E105),0) -> 404.7246259 | F106: 915.7046197 | G106: 1436.59281 | H106: 1970.700512
A107: Tilikauden tulos | D107: =+D104-SUM(D105:D106) -> -174.2857143 | E107: =+E104-SUM(E105:E106) -> 1618.898503 | F107: 3662.818479 | G107: 5746.371238 | H107: 7882.802048
A109: TASE-ENNUSTE (Euro)
A111: Taseen omaisuus | D111: Ennusteet:
A112: Lyhytaikainen: | D112: =+D77 -> 1 | E112: =+E77 -> 2 | F112: =+F77 -> 3 | G112: =+G77 -> 4 | H112: =+H77 -> 5
A113: Rahoitusomaisuus ja muu lyhytaikainen omaisuus | C113: =+K!F14 -> 10000 | D113: =+$B$18*D78-D62 -> 7830 | E113: =+$B$18*E78-E62 -> 8221.5 | F113: =+$B$18*F78-F62 -> 8632.575 | G113: =+$B$18*G78-G62 -> 9064.20375 | H113: =+$B$18*H78-H62 -> 10217.89124
A114: Pitkäaikainen:
A115: =+A51 -> Maa- ja vesialueet | C115: =+B69 -> 20000 | D115: =+C115*(1-$C69) -> 20000 | E115: 20000 | F115: 20000 | G115: 20000 | H115: 20000
A116: =+A52 -> Rakennukset ja rakennelmat | C116: =+B70 -> 120000 | D116: 114285.7143 | E116: 108843.5374 | F116: 103660.5118 | G116: 98724.29698 | H116: 94023.13998
A117: =+A53 -> Koneet ja kalusto | C117: =+B71 -> 40000 | D117: 35000 | E117: 30625 | F117: 26796.875 | G117: 23447.26562 | H117: 20516.35742
A118: =+A54 -> Aineeton käyttöomaisuus | C118: =+B72 -> 3000 | D118: 2400 | E118: 1920 | F118: 1536 | G118: 1228.8 | H118: 983.04
A119: =+A55 -> Muu käyttöomaisuus | C119: =+B73 -> 1500 | D119: 1200 | E119: 960 | F119: 768 | G119: 614.4 | H119: 491.52
A120: Yhteensä | D120: =+D113+SUM(D115:D119) -> 180715.7143 | E120: =+E113+SUM(E115:E119) -> 170570.0374 | F120: =+F113+SUM(F115:F119) -> 161393.9618 | G120: =+G113+SUM(G115:G119) -> 153078.9664 | H120: =+H113+SUM(H115:H119) -> 146231.9486
A122: Taseen pääoma
A123: Lyhytaikainen:
A124: Lyhytaikaiset velat (maks. voitto-osuus) | D124: =+D133 -> 91.28571429 | E124: =+E133 -> 167.6663537 | F124: 342.42396 | G124: 612.6213239 | H124: 976.1303601
A125: Muu lyhytaikainen vieras pääoma | C125: =+B59+K!F30 -> 12000 | D125: =+C125-D63 -> 25640 | E125: =+D125-E63 -> 36954.21034 | F125: =+E125-F63 -> 43822.35762 | G125: =+F125-G63 -> 46711.88362 | H125: =+G125-H63 -> 46711.88362
A126: Pitkäaikainen:
A127: Pitkäaikainen vieras pääoma | C127: =+K!F31 -> 145000 | D127: =+C127+D60 -> 138250 | E127: =+D127+E60 -> 115262.5 | F127: =+E127+F60 -> 95723.125 | G127: =+F127+G60 -> 79114.65625 | H127: =+G127+H60 -> 64997.45781
A128: Sijoitettu oma pääoma | C128: =+B61+K!F33 -> 15000 | D128: =+C128 -> 15000 | E128: =+D128+E61 -> 15000 | F128: =+E128+F61 -> 15000 | G128: =+F128+G61 -> 15000 | H128: =+G128+H61 -> 15000
A129: Kertyneet voittovarat ja muu oma pääoma | C129: =+D107+K!F32 -> 1825.714286 | D129: =+C129-D133 -> 1734.428571 | E129: =+D129+E107-E133 -> 3185.660721 | F129: =+E129+F107-F133 -> 6506.05524 | G129: =+F129+G107-G133 -> 11639.80515 | H129: =+G129+H107-H133 -> 18546.47684
A130: Yhteensä | D130: =+SUM(D124:D129) -> 180715.7143 | E130: 170570.0374 | F130: 161393.9618 | G130: 153078.9664 | H130: 146231.9486
A132: Lisätietoja: | D132: Laskettu:
A133: Osingot kertyneistä voitoista | B133: =+B16 -> 0.05 | D133: =+IF(C129-$B133*C129>0,$B133*C129,IF(C129>0,C129,0)) -> 91.28571429 | E133: =+IF(D129-$B133*D129+E107>0,$B133*(D129+E107),IF(D129+E107>0,D129+E107,0)) -> 167.6663537 | F133: =+IF(E129-$B133*E129+F107>0,$B133*(E129+F107),IF(E129+F107>0,E129+F107,0)) -> 342.42396 | G133: =+IF(F129-$B133*F129+G107>0,$B133*(F129+G107),IF(F129+G107>0,F129+G107,0)) -> 612.6213239 | H133: =+IF(G129-$B133*G129+H107>0,$B133*(G129+H107),IF(G129+H107>0,G129+H107,0)) -> 976.1303601
C135: Tarkistus | D135: =0.05*(D129+D124) -> 91.28571429 | E135: =0.05*(E129+E124) -> 167.6663537 | F135: 342.42396 | G135: 612.6213239 | H135: 976.1303601
A138: TILINPÄÄTÖKSEN TUNNUSLUVUT
D139: =+D25 -> 1 | E139: =+E25 -> 2 | F139: =+F25 -> 3 | G139: =+G25 -> 4 | H139: =+H25 -> 5
A140: Koko
A141: 1. Liikevaihto (Euro) | D141: =+D78 -> 156600 | E141: =+E78 -> 164430 | F141: =+F78 -> 172651.5 | G141: =+G78 -> 181284.075 | H141: =+H78 -> 190348.2787
A142: 2. Taseen loppusumma (Euro) | D142: =+D120 -> 180715.7143 | E142: =+E120 -> 170570.0374 | F142: =+F120 -> 161393.9618 | G142: =+G120 -> 153078.9664 | H142: =+H120 -> 146231.9486
A143: 3. Tilikauden tulos (Euro) | D143: =+D107 -> -174.2857143 | E143: =+E107 -> 1618.898503 | F143: =+F107 -> 3662.818479 | G143: =+G107 -> 5746.371238 | H143: =+H107 -> 7882.802048
A144: 4. Voitto-osuus omistajalle (Euro) | D144: =+D133 -> 91.28571429 | E144: =+E133 -> 167.6663537 | F144: 342.42396 | G144: 612.6213239 | H144: 976.1303601
A146: Kasvu
A147: 1. Liikevaihdon kasvu-% | E147: =100*E78/D78-100 -> 5 | F147: =100*F78/E78-100 -> 5 | G147: =100*G78/F78-100 -> 5 | H147: =100*H78/G78-100 -> 5
A148: 2. Taseen loppusumman kasvu-% | E148: =100*E120/D120-100 -> -5.614164164 | F148: =100*F120/E120-100 -> -5.379652681 | G148: =100*G120/F120-100 -> -5.151986716 | H148: =100*H120/G120-100 -> -4.472866441
A149: 3. Tilikauden tuloksen kasvu-% | E149: =100*(E107)/(D107)-100 -> -1028.87619 | F149: =100*(F107)/(E107)-100 -> 126.2537442 | G149: =100*(G107)/(F107)-100 -> 56.8838661 | H149: =100*(H107)/(G107)-100 -> 37.17878155
A151: Kannattavuus
A152: 1. Käyttökate / Liikevaihto (%) | D152: =100*D97/D78 -> 9.38697318 | E152: =100*E97/E78 -> 9.788359788 | F152: =100*F97/F78 -> 10.18210094 | G152: =100*G97/G78 -> 10.56834226 | H152: =100*H97/H78 -> 10.9472266
A153: 2. Liiketulos / Liikevaihto (%) | D153: =100*D104/D78 -> 1.97044335 | E153: =100*E104/E78 -> 3.380054205 | F153: =100*F104/F78 -> 4.629209366 | G153: =100*G104/G78 -> 5.743525611 | H153: =100*H104/H78 -> 6.744033767
A154: 3. Tilikauden tulos / Liikevaihto (%) | D154: =100*D107/D78 -> -0.1112935596 | E154: =100*E107/E78 -> 0.984551787 | F154: =100*F107/F78 -> 2.121509792 | G154: =100*G107/G78 -> 3.169815792 | H154: =100*H107/H78 -> 4.141252077
A155: 4. Sijoitetun pääoman tuotto-% | E155: =100*(E107+E106+E105)/D120 -> 3.075450938 | F155: =100*(F107+F106+F105)/E120 -> 4.685699511 | G155: =100*(G107+G106+G105)/F120 -> 6.451354907 | H155: =100*(H107+H106+H105)/G120 -> 8.385967386
A156: 5. Oman pääoman tuotto-% | E156: =+IF(D128+D129>0,100*(E107)/(D128+D129),"") -> 9.67405906 | F156: =+IF(E128+E129>0,100*(F107)/(E128+E129),"") -> 20.14124499 | G156: 26.71978275 | H156: 29.5903142
A158: Maksuvalmius
A159: 1. Rahoitustulos / Liikevaihto | D159: =100*(D107+SUM(D99:D103))/D78 -> 7.305236271 | E159: =100*(E107+SUM(E99:E103))/E78 -> 7.39285737 | F159: =100*(F107+SUM(F99:F103))/F78 -> 7.674401363 | G159: =100*(G107+SUM(G99:G103))/G78 -> 7.994632436 | H159: =100*(H107+SUM(H99:H103))/H78 -> 8.344444906
A160: 2. Quick ratio | D160: =+(D113)/(D124+D125) -> 0.3042988247 | E160: =+(E113)/(E124+E125) -> 0.2214731779 | F160: =+(F113)/(F124+F125) -> 0.1954628709 | G160: =+(G113)/(G124+G125) -> 0.1915329861 | H160: =+(H113)/(H124+H125) -> 0.2142653968
A162: Vakavaraisuus
A163: 1. Omavaraisuusaste | D163: =100*(D128+D129)/D130 -> 9.260084901 | E163: =100*(E128+E129)/E130 -> 10.66169709 | F163: 13.32519197 | G163: 17.4026555 | H163: 22.94059346
A164: 2. Rahoitustulos / Velat (%) | D164: =100*(D107+SUM(D99:D103))/(+D124+D125+D127) -> 6.976405844 | E164: =100*(E107+SUM(E99:E103))/(+E124+E125+E127) -> 7.977245199 | F164: =100*(F107+SUM(F99:F103))/(+F124+F125+F127) -> 9.47184742 | G164: =100*(G107+SUM(G99:G103))/(+G124+G125+G127) -> 11.46242614 | H164: =100*(H107+SUM(H99:H103))/(+H124+H125+H127) -> 14.09543484
A166: Rahoitusriski
A167: 1. Kolmen muuttujan P-luku | B167: Kriittinen arvo P* = 0,50 | D167: =1/(1+EXP(-(0.843-0.027*D163-0.039*D160-0.01*D159))) -> 0.6243510416 | E167: =1/(1+EXP(-(0.843-0.027*E163-0.039*E160-0.01*E159))) -> 0.6159914229 | F167: =1/(1+EXP(-(0.843-0.027*F163-0.039*F160-0.01*F159))) -> 0.5984119901 | G167: =1/(1+EXP(-(0.843-0.027*G163-0.039*G160-0.01*G159))) -> 0.5709460837 | H167: =1/(1+EXP(-(0.843-0.027*H163-0.039*H160-0.01*H159))) -> 0.532903175
B168: Tulkintalause | D168: =+IF(D167>0.65,"Erittäin suuri riski",IF(D167>0.45,"Suuri riski",IF(D167>0.25,"Kohtuullinen riski",IF(D167>0.1,"Suhteellisen pieni riski","Pieni riski")))) -> Suuri riski | E168: =+IF(E167>0.65,"Erittäin suuri riski",IF(E167>0.45,"Suuri riski",IF(E167>0.25,"Kohtuullinen riski",IF(E167>0.1,"Suhteellisen pieni riski","Pieni riski")))) -> Suuri riski | F168: Suuri riski | G168: Suuri riski | H168: Suuri riski

Sheet T (hidden)
B1: Copyright Vaasan Yritysinformaatio Oy. Kaikki tekijänoikeudet pidätetään.
B3: ENNAKOITU TULOSLASKELMA
C4: Ennakoidut viisi vuotta:
C5: 1 | D5: 2 | E5: 3 | F5: 4 | G5: 5
B6: =+E!A78 -> Liikevaihto | C6: =+E!D78 -> 156600 | D6: =+E!E78 -> 164430 | E6: =+E!F78 -> 172651.5 | F6: =+E!G78 -> 181284.075 | G6: =+E!H78 -> 190348.2787
B7: =+E!A79 -> - Muuttuvat kulut
B8: =+E!A80 -> Karkearehu | C8: =+E!D80 -> 21600 | D8: =+E!E80 -> 22680 | E8: =+E!F80 -> 23814 | F8: =+E!G80 -> 25004.7 | G8: =+E!H80 -> 26254.935
B9: =+E!A81 -> Väkirehu | C9: =+E!D81 -> 8640 | D9: =+E!E81 -> 9072 | E9: =+E!F81 -> 9525.6 | F9: =+E!G81 -> 10001.88 | G9: =+E!H81 -> 10501.974
B10: =+E!A82 -> Kivennäiset | C10: =+E!D82 -> 8640 | D10: =+E!E82 -> 9072 | E10: =+E!F82 -> 9525.6 | F10: =+E!G82 -> 10001.88 | G10: =+E!H82 -> 10501.974
B11: =+E!A83 -> Muut ruokintakustannukset | C11: =+E!D83 -> 4320 | D11: =+E!E83 -> 4536 | E11: =+E!F83 -> 4762.8 | F11: =+E!G83 -> 5000.94 | G11: =+E!H83 -> 5250.987
B12: =+E!A84 -> Kuivikekustannukset | C12: =+E!D84 -> 10800 | D12: =+E!E84 -> 11340 | E12: =+E!F84 -> 11907 | F12: =+E!G84 -> 12502.35 | G12: =+E!H84 -> 13127.4675
B13: =+E!A85 -> Täyshoidon muuttuvat palkat lisineen | C13: =+E!D85 -> 21600 | D13: =+E!E85 -> 22680 | E13: =+E!F85 -> 23814 | F13: =+E!G85 -> 25004.7 | G13: =+E!H85 -> 26254.935
B14: =+E!A86 -> Valmennuksen muuttuvat palkat lisineen | C14: =+E!D86 -> 32400 | D14: =+E!E86 -> 34020 | E14: =+E!F86 -> 35721 | F14: =+E!G86 -> 37507.05 | G14: =+E!H86 -> 39382.4025
B15: =+E!A87 -> Muut muuttuvat kulut | C15: =+E!D87 -> 900 | D15: =+E!E87 -> 945 | E15: =+E!F87 -> 992.25 | F15: =+E!G87 -> 1041.8625 | G15: =+E!H87 -> 1093.955625
B16: =+E!A88 -> = Myyntikate | C16: =+E!D88 -> 47700 | D16: =+E!E88 -> 50085 | E16: =+E!F88 -> 52589.25 | F16: =+E!G88 -> 55218.7125 | G16: =+E!H88 -> 57979.64813
B17: =+E!A89 -> - Kiinteät kulut
B18: =+E!A90 -> Vuokrakulut | C18: =+E!D90 -> 0 | D18: =+E!E90 -> 0 | E18: =+E!F90 -> 0 | F18: =+E!G90 -> 0 | G18: =+E!H90 -> 0
B19: =+E!A91 -> Sähkökulut | C19: =+E!D91 -> 2400 | D19: =+E!E91 -> 2472 | E19: =+E!F91 -> 2546.16 | F19: =+E!G91 -> 2622.5448 | G19: =+E!H91 -> 2701.221144
B20: =+E!A92 -> Vesikulut | C20: =+E!D92 -> 1200 | D20: =+E!E92 -> 1236 | E20: =+E!F92 -> 1273.08 | F20: =+E!G92 -> 1311.2724 | G20: =+E!H92 -> 1350.610572
B21: =+E!A93 -> Pohjien huolto | C21: =+E!D93 -> 3000 | D21: =+E!E93 -> 3090 | E21: =+E!F93 -> 3182.7 | F21: =+E!G93 -> 3278.181 | G21: =+E!H93 -> 3376.52643
B22: =+E!A94 -> Lantalan tyhjennys | C22: =+E!D94 -> 1200 | D22: =+E!E94 -> 1236 | E22: =+E!F94 -> 1273.08 | F22: =+E!G94 -> 1311.2724 | G22: =+E!H94 -> 1350.610572
B23: =+E!A95 -> Kiinteät palkkakustannukset lisineen | C23: =+E!D95 -> 24000 | D23: =+E!E95 -> 24720 | E23: =+E!F95 -> 25461.6 | F23: =+E!G95 -> 26225.448 | G23: =+E!H95 -> 27012.21144
B24: Muut kiinteät kulut | C24: =+E!D96 -> 1200 | D24: =+E!E96 -> 1236 | E24: =+E!F96 -> 1273.08 | F24: =+E!G96 -> 1311.2724 | G24: =+E!H96 -> 1350.610572
B25: =+E!A97 -> = Käyttökate | C25: =+E!D97 -> 14700 | D25: =+E!E97 -> 16095 | E25: =+E!F97 -> 17579.55 | F25: =+E!G97 -> 19158.7215 | G25: =+E!H97 -> 20837.8574
B26: =+E!A98 -> - Poistot
B27: =+E!A99 -> Maa- ja vesialueet | C27: =+E!D99 -> 0 | D27: =+E!E99 -> 0 | E27: =+E!F99 -> 0 | F27: =+E!G99 -> 0 | G27: =+E!H99 -> 0
B28: =+E!A100 -> Rakennukset ja rakennelmat | C28: =+E!D100 -> 5714.285714 | D28: =+E!E100 -> 5442.176871 | E28: =+E!F100 -> 5183.025591 | F28: =+E!G100 -> 4936.214849 | G28: =+E!H100 -> 4701.156999
B29: =+E!A101 -> Koneet ja kalusto | C29: =+E!D101 -> 5000 | D29: =+E!E101 -> 4375 | E29: =+E!F101 -> 3828.125 | F29: =+E!G101 -> 3349.609375 | G29: =+E!H101 -> 2930.908203
B30: =+E!A102 -> Aineeton käyttöomaisuus | C30: =+E!D102 -> 600 | D30: =+E!E102 -> 480 | E30: =+E!F102 -> 384 | F30: =+E!G102 -> 307.2 | G30: =+E!H102 -> 245.76
B31: =+E!A103 -> Muu käyttöomaisuus | C31: =+E!D103 -> 300 | D31: =+E!E103 -> 240 | E31: =+E!F103 -> 192 | F31: =+E!G103 -> 153.6 | G31: =+E!H103 -> 122.88
B32: =+E!A104 -> = Liiketulos | C32: =+E!D104 -> 3085.714286 | D32: =+E!E104 -> 5557.823129 | E32: =+E!F104 -> 7992.399409 | F32: =+E!G104 -> 10412.09728 | G32: =+E!H104 -> 12837.15219
B33: =+E!A105 -> - Korkokulut | C33: =+E!D105 -> 3260 | D33: =+E!E105 -> 3534.2 | E33: =+E!F105 -> 3413.87631 | F33: =+E!G105 -> 3229.133229 | G33: =+E!H105 -> 2983.649634
B34: =+E!A106 -> - Verot | C34: =+E!D106 -> 0 | D34: =+E!E106 -> 404.7246259 | E34: =+E!F106 -> 915.7046197 | F34: =+E!G106 -> 1436.59281 | G34: =+E!H106 -> 1970.700512
B35: =+E!A107 -> Tilikauden tulos | C35: =+E!D107 -> -174.2857143 | D35: =+E!E107 -> 1618.898503 | E35: =+E!F107 -> 3662.818479 | F35: =+E!G107 -> 5746.371238 | G35: =+E!H107 -> 7882.802048
B37: ENNAKOITU TASE
C38: =+C4 -> Ennakoidut viisi vuotta:
C39: 1 | D39: 2 | E39: 3 | F39: 4 | G39: 5
B40: =+E!A111 -> Taseen omaisuus
B41: =+E!A112 -> Lyhytaikainen:
B42: =+E!A113 -> Rahoitusomaisuus ja muu lyhytaikainen omaisuus | C42: =+E!D113 -> 7830 | D42: =+E!E113 -> 8221.5 | E42: =+E!F113 -> 8632.575 | F42: =+E!G113 -> 9064.20375 | G42: =+E!H113 -> 10217.89124
B43: =+E!A114 -> Pitkäaikainen:
B44: =+E!A115 -> Maa- ja vesialueet | C44: =+E!D115 -> 20000 | D44: =+E!E115 -> 20000 | E44: =+E!F115 -> 20000 | F44: =+E!G115 -> 20000 | G44: =+E!H115 -> 20000
B45: =+E!A116 -> Rakennukset ja rakennelmat | C45: =+E!D116 -> 114285.7143 | D45: =+E!E116 -> 108843.5374 | E45: =+E!F116 -> 103660.5118 | F45: =+E!G116 -> 98724.29698 | G45: =+E!H116 -> 94023.13998
B46: =+E!A117 -> Koneet ja kalusto | C46: =+E!D117 -> 35000 | D46: =+E!E117 -> 30625 | E46: =+E!F117 -> 26796.875 | F46: =+E!G117 -> 23447.26562 | G46: =+E!H117 -> 20516.35742
B47: =+E!A118 -> Aineeton käyttöomaisuus | C47: =+E!D118 -> 2400 | D47: =+E!E118 -> 1920 | E47: =+E!F118 -> 1536 | F47: =+E!G118 -> 1228.8 | G47: =+E!H118 -> 983.04
B48: =+E!A119 -> Muu käyttöomaisuus | C48: =+E!D119 -> 1200 | D48: =+E!E119 -> 960 | E48: =+E!F119 -> 768 | F48: =+E!G119 -> 614.4 | G48: =+E!H119 -> 491.52
B49: =+E!A120 -> Yhteensä | C49: =+E!D120 -> 180715.7143 | D49: =+E!E120 -> 170570.0374 | E49: =+E!F120 -> 161393.9618 | F49: =+E!G120 -> 153078.9664 | G49: =+E!H120 -> 146231.9486
B51: =+E!A122 -> Taseen pääoma
B52: =+E!A123 -> Lyhytaikainen:
B53: =+E!A124 -> Lyhytaikaiset velat (maks. voitto-osuus) | C53: =+E!D124 -> 91.28571429 | D53: =+E!E124 -> 167.6663537 | E53: =+E!F124 -> 342.42396 | F53: =+E!G124 -> 612.6213239 | G53: =+E!H124 -> 976.1303601
B54: =+E!A125 -> Muu lyhytaikainen vieras pääoma | C54: =+E!D125 -> 25640 | D54: =+E!E125 -> 36954.21034 | E54: =+E!F125 -> 43822.35762 | F54: =+E!G125 -> 46711.88362 | G54: =+E!H125 -> 46711.88362
B55: =+E!A126 -> Pitkäaikainen:
B56: =+E!A127 -> Pitkäaikainen vieras pääoma | C56: =+E!D127 -> 138250 | D56: =+E!E127 -> 115262.5 | E56: =+E!F127 -> 95723.125 | F56: =+E!G127 -> 79114.65625 | G56: =+E!H127 -> 64997.45781
B57: =+E!A128 -> Sijoitettu oma pääoma | C57: =+E!D128 -> 15000 | D57: =+E!E128 -> 15000 | E57: =+E!F128 -> 15000 | F57: =+E!G128 -> 15000 | G57: =+E!H128 -> 15000
B58: =+E!A129 -> Kertyneet voittovarat ja muu oma pääoma | C58: =+E!D129 -> 1734.428571 | D58: =+E!E129 -> 3185.660721 | E58: =+E!F129 -> 6506.05524 | F58: =+E!G129 -> 11639.80515 | G58: =+E!H129 -> 18546.47684
B59: =+E!A130 -> Yhteensä | C59: =+E!D130 -> 180715.7143 | D59: =+E!E130 -> 170570.0374 | E59: =+E!F130 -> 161393.9618 | F59: =+E!G130 -> 153078.9664 | G59: =+E!H130 -> 146231.9486
B61: ENNAKOIDUT TUNNUSLUVUT
C62: =+C4 -> Ennakoidut viisi vuotta:
C63: =+E!D139 -> 1 | D63: =+E!E139 -> 2 | E63: =+E!F139 -> 3 | F63: =+E!G139 -> 4 | G63: =+E!H139 -> 5
B64: Koko
B65: =+E!A141 -> 1. Liikevaihto (Euro) | C65: =+E!D141 -> 156600 | D65: =+E!E141 -> 164430 | E65: =+E!F141 -> 172651.5 | F65: =+E!G141 -> 181284.075 | G65: =+E!H141 -> 190348.2787
B66: =+E!A142 -> 2. Taseen loppusumma (Euro) | C66: =+E!D142 -> 180715.7143 | D66: =+E!E142 -> 170570.0374 | E66: =+E!F142 -> 161393.9618 | F66: =+E!G142 -> 153078.9664 | G66: =+E!H142 -> 146231.9486
B67: =+E!A143 -> 3. Tilikauden tulos (Euro) | C67: =+E!D143 -> -174.2857143 | D67: =+E!E143 -> 1618.898503 | E67: =+E!F143 -> 3662.818479 | F67: =+E!G143 -> 5746.371238 | G67: =+E!H143 -> 7882.802048
B68: =+E!A144 -> 4. Voitto-osuus omistajalle (Euro) | C68: =+E!D144 -> 91.28571429 | D68: =+E!E144 -> 167.6663537 | E68: =+E!F144 -> 342.42396 | F68: =+E!G144 -> 612.6213239 | G68: =+E!H144 -> 976.1303601
B70: =+E!A146 -> Kasvu
B71: =+E!A147 -> 1. Liikevaihdon kasvu-% | D71: =+E!E147 -> 5 | E71: =+E!F147 -> 5 | F71: =+E!G147 -> 5 | G71: =+E!H147 -> 5
B72: =+E!A148 -> 2. Taseen loppusumman kasvu-% | D72: =+E!E148 -> -5.614164164 | E72: =+E!F148 -> -5.379652681 | F72: =+E!G148 -> -5.151986716 | G72: =+E!H148 -> -4.472866441
B73: =+E!A149 -> 3. Tilikauden tuloksen kasvu-% | D73: =+E!E149 -> -1028.87619 | E73: =+E!F149 -> 126.2537442 | F73: =+E!G149 -> 56.8838661 | G73: =+E!H149 -> 37.17878155
B75: =+E!A151 -> Kannattavuus
B76: =+E!A152 -> 1. Käyttökate / Liikevaihto (%) | C76: =+E!D152 -> 9.38697318 | D76: =+E!E152 -> 9.788359788 | E76: =+E!F152 -> 10.18210094 | F76: =+E!G152 -> 10.56834226 | G76: =+E!H152 -> 10.9472266
B77: =+E!A153 -> 2. Liiketulos / Liikevaihto (%) | C77: =+E!D153 -> 1.97044335 | D77: =+E!E153 -> 3.380054205 | E77: =+E!F153 -> 4.629209366 | F77: =+E!G153 -> 5.743525611 | G77: =+E!H153 -> 6.744033767
B78: =+E!A154 -> 3. Tilikauden tulos / Liikevaihto (%) | C78: =+E!D154 -> -0.1112935596 | D78: =+E!E154 -> 0.984551787 | E78: =+E!F154 -> 2.121509792 | F78: =+E!G154 -> 3.169815792 | G78: =+E!H154 -> 4.141252077
B79: =+E!A155 -> 4. Sijoitetun pääoman tuotto-% | D79: =+E!E155 -> 3.075450938 | E79: =+E!F155 -> 4.685699511 | F79: =+E!G155 -> 6.451354907 | G79: =+E!H155 -> 8.385967386
B80: =+E!A156 -> 5. Oman pääoman tuotto-% | D80: =+E!E156 -> 9.67405906 | E80: =+E!F156 -> 20.14124499 | F80: =+E!G156 -> 26.71978275 | G80: =+E!H156 -> 29.5903142
B82: =+E!A158 -> Maksuvalmius
B83: =+E!A159 -> 1. Rahoitustulos / Liikevaihto | C83: =+E!D159 -> 7.305236271 | D83: =+E!E159 -> 7.39285737 | E83: =+E!F159 -> 7.674401363 | F83: =+E!G159 -> 7.994632436 | G83: =+E!H159 -> 8.344444906
B84: =+E!A160 -> 2. Quick ratio | C84: =+E!D160 -> 0.3042988247 | D84: =+E!E160 -> 0.2214731779 | E84: =+E!F160 -> 0.1954628709 | F84: =+E!G160 -> 0.1915329861 | G84: =+E!H160 -> 0.2142653968
B86: =+E!A162 -> Vakavaraisuus
B87: =+E!A163 -> 1. Omavaraisuusaste | C87: =+E!D163 -> 9.260084901 | D87: =+E!E163 -> 10.66169709 | E87: =+E!F163 -> 13.32519197 | F87: =+E!G163 -> 17.4026555 | G87: =+E!H163 -> 22.94059346
B88: =+E!A164 -> 2. Rahoitustulos / Velat (%) | C88: =+E!D164 -> 6.976405844 | D88: =+E!E164 -> 7.977245199 | E88: =+E!F164 -> 9.47184742 | F88: =+E!G164 -> 11.46242614 | G88: =+E!H164 -> 14.09543484
B90: Rahoitusriski: Taipumus kuulua konkurssiyritysten (1) tai toimivien yritysten (0) joukkoon
B91: =+E!A167 -> 1. Kolmen muuttujan P-luku | C91: =+E!D167 -> 0.6243510416 | D91: =+E!E167 -> 0.6159914229 | E91: =+E!F167 -> 0.5984119901 | F91: =+E!G167 -> 0.5709460837 | G91: =+E!H167 -> 0.532903175
B94: TULKINTARAPORTTI
C96: =+C4 -> Ennakoidut viisi vuotta:
C97: 1 | D97: 2 | E97: 3 | F97: 4 | G97: 5
B98: Kannattavuus
B99: Käyttökate / Myyntituotot (%) | C99: =+IF(C76>0,"Positiivinen","Negatiivinen") -> Positiivinen | D99: =+IF(D76>0,"Positiivinen","Negatiivinen") -> Positiivinen | E99: =+IF(E76>0,"Positiivinen","Negatiivinen") -> Positiivinen | F99: =+IF(F76>0,"Positiivinen","Negatiivinen") -> Positiivinen | G99: =+IF(G76>0,"Positiivinen","Negatiivinen") -> Positiivinen
B100: Sijoitetun pääoman tuotto-% | D100: =+IF(D79>15,"Erinomainen",IF(D79>10,"Hyvä",IF(D79>6,"Tyydyttävä",IF(D79>3,"Välttävä","Heikko")))) -> Välttävä | E100: =+IF(E79>15,"Erinomainen",IF(E79>10,"Hyvä",IF(E79>6,"Tyydyttävä",IF(E79>3,"Välttävä","Heikko")))) -> Välttävä | F100: =+IF(F79>15,"Erinomainen",IF(F79>10,"Hyvä",IF(F79>6,"Tyydyttävä",IF(F79>3,"Välttävä","Heikko")))) -> Tyydyttävä | G100: =+IF(G79>15,"Erinomainen",IF(G79>10,"Hyvä",IF(G79>6,"Tyydyttävä",IF(G79>3,"Välttävä","Heikko")))) -> Tyydyttävä
B101: Oman pääoman tuotto-% | D101: =+IF(D80="","",IF(D80>20,"Erinomainen",IF(D80>15,"Hyvä",IF(D80>10,"Tyydyttävä",IF(D80>5,"Välttävä","Heikko"))))) -> Välttävä | E101: =+IF(E80="","",IF(E80>20,"Erinomainen",IF(E80>15,"Hyvä",IF(E80>10,"Tyydyttävä",IF(E80>5,"Välttävä","Heikko"))))) -> Erinomainen | F101: Erinomainen | G101: Erinomainen
B103: Maksuvalmius
B104: Rahoitustulos / Myyntituotot | C104: =+IF(C83>0,"Positiivinen","Negatiivinen") -> Positiivinen | D104: =+IF(D83>0,"Positiivinen","Negatiivinen") -> Positiivinen | E104: =+IF(E83>0,"Positiivinen","Negatiivinen") -> Positiivinen | F104: =+IF(F83>0,"Positiivinen","Negatiivinen") -> Positiivinen | G104: =+IF(G83>0,"Positiivinen","Negatiivinen") -> Positiivinen
B105: Quick ratio | C105: =+IF(C84>1.5,"Erinomainen",IF(C84>1,"Hyvä",IF(C84>0.5,"Tyydyttävä",IF(C84>0.3,"Välttävä","Heikko")))) -> Välttävä | D105: =+IF(D84>1.5,"Erinomainen",IF(D84>1,"Hyvä",IF(D84>0.5,"Tyydyttävä",IF(D84>0.3,"Välttävä","Heikko")))) -> Heikko | E105: =+IF(E84>1.5,"Erinomainen",IF(E84>1,"Hyvä",IF(E84>0.5,"Tyydyttävä",IF(E84>0.3,"Välttävä","Heikko")))) -> Heikko | F105: =+IF(F84>1.5,"Erinomainen",IF(F84>1,"Hyvä",IF(F84>0.5,"Tyydyttävä",IF(F84>0.3,"Välttävä","Heikko")))) -> Heikko | G105: =+IF(G84>1.5,"Erinomainen",IF(G84>1,"Hyvä",IF(G84>0.5,"Tyydyttävä",IF(G84>0.3,"Välttävä","Heikko")))) -> Heikko
B107: Vakavaraisuus
B108: Omavaraisuusaste | C108: =+IF(C87>50,"Erinomainen",IF(C87>35,"Hyvä",IF(C87>25,"Tyydyttävä",IF(C87>15,"Välttävä","Heikko")))) -> Heikko | D108: =+IF(D87>50,"Erinomainen",IF(D87>35,"Hyvä",IF(D87>25,"Tyydyttävä",IF(D87>15,"Välttävä","Heikko")))) -> Heikko | E108: Heikko | F108: Välttävä | G108: Välttävä
B109: Rahoitustulos / Velat (%) | C109: =+IF(1/(C88/100)<1,"Erinomainen",IF(1/(C88/100)<3,"Hyvä",IF(1/(C88/100)<5,"Tyydyttävä",IF(1/(C88/100)<10,"Välttävä","Heikko")))) -> Heikko | D109: =+IF(1/(D88/100)<1,"Erinomainen",IF(1/(D88/100)<3,"Hyvä",IF(1/(D88/100)<5,"Tyydyttävä",IF(1/(D88/100)<10,"Välttävä","Heikko")))) -> Heikko | E109: Heikko | F109: Välttävä | G109: Välttävä
B111: Rahoitusriski
B112: Kolmen muuttujan P-luku | C112: =+IF(C91>0.65,"Erittäin suuri riski",IF(C91>0.45,"Suuri riski",IF(C91>0.25,"Kohtuullinen riski",IF(C91>0.1,"Suhteellisen pieni riski","Pieni riski")))) -> Suuri riski | D112: =+IF(D91>0.65,"Erittäin suuri riski",IF(D91>0.45,"Suuri riski",IF(D91>0.25,"Kohtuullinen riski",IF(D91>0.1,"Suhteellisen pieni riski","Pieni riski")))) -> Suuri riski | E112: Suuri riski | F112: Suuri riski | G112: Suuri riski
B115: LIITEKUVIOT
J116: Vuosi | K116: 1 | L116: 2 | M116: 3 | N116: 4 | O116: 5
J117: Käyttökate | K117: =+C25 -> 14700 | L117: =+D25 -> 16095 | M117: =+E25 -> 17579.55 | N117: =+F25 -> 19158.7215 | O117: =+G25 -> 20837.8574
J118: Liiketulos | K118: =+C32 -> 3085.714286 | L118: =+D32 -> 5557.823129 | M118: =+E32 -> 7992.399409 | N118: =+F32 -> 10412.09728 | O118: =+G32 -> 12837.15219
J119: Tilikauden tulos | K119: =+C35 -> -174.2857143 | L119: =+D35 -> 1618.898503 | M119: =+E35 -> 3662.818479 | N119: =+F35 -> 5746.371238 | O119: =+G35 -> 7882.802048
J137: Vuosi | K137: 1 | L137: 2 | M137: 3 | N137: 4 | O137: 5
J138: Sijoitetun pääoman tuotto-% | L138: =+D79 -> 3.075450938 | M138: =+E79 -> 4.685699511 | N138: =+F79 -> 6.451354907 | O138: =+G79 -> 8.385967386
J139: Quick ratio | K139: =+C84 -> 0.3042988247 | L139: =+D84 -> 0.2214731779 | M139: =+E84 -> 0.1954628709 | N139: =+F84 -> 0.1915329861 | O139: =+G84 -> 0.2142653968
J140: Omavaraisuusaste | K140: =+C87 -> 9.260084901 | L140: 10.66169709 | M140: 13.32519197 | N140: 17.4026555 | O140: 22.94059346
J157: Vuosi | K157: 1 | L157: 2 | M157: 3 | N157: 4 | O157: 5
J158: Rahoitusriski | K158: =+C91 -> 0.6243510416 | L158: =+D91 -> 0.6159914229 | M158: 0.5984119901 | N158: 0.5709460837 | O158: 0.532903175
J159: Kriittinen taso | K159: 0.5 | L159: 0.5 | M159: 0.5 | N159: 0.5 | O159: 0.5
